bitfinex-derivatives/quotes_BTCF0:USTF0_20250809
["timestamp","ask_amount","ask_price","bid_price","bid_amount"]
[1754774991159,0.81359907,116530.0,116520.0,0.79787314]
[1754774991458,0.81359907,116530.0,116520.0,0.12896]
[1754774991768,0.81359907,116530.0,116520.0,0.79787314]
[1754774993468,0.81359907,116530.0,116520.0,0.12896]
[1754774993658,0.81359907,116530.0,116520.0,0.79787314]
[1754774999865,0.4791425,116530.0,116520.0,0.88367254]
[1754775000070,0.81359907,116530.0,116520.0,0.88367254]
[1754775000262,0.4791425,116530.0,116520.0,0.88367254]
[1754775000462,0.81359907,116530.0,116520.0,0.88367254]
[1754775001771,0.81359907,116530.0,116520.0,0.79787314]
[1754775002367,0.81359907,116530.0,116520.0,0.12896]
[1754775002566,0.81359907,116530.0,116520.0,0.79787314]
[1754775002966,0.81359907,116530.0,116520.0,0.12896]
[1754775003167,0.81359907,116530.0,116520.0,0.79787314]
[1754775003873,0.81359907,116530.0,116520.0,0.12896]
[1754775004066,0.81359907,116530.0,116520.0,0.79787314]
[1754775006476,0.4791425,116530.0,116520.0,0.79787314]
[1754775006667,0.81359907,116530.0,116520.0,0.79787314]
[1754775007373,0.81359907,116530.0,116520.0,0.46341657]
[1754775008871,0.4791425,116530.0,116520.0,0.46341657]
[1754775009174,0.81359907,116530.0,116520.0,0.46341657]
[1754775009379,1.62215907,116530.0,116520.0,0.46341657]
[1754775009982,1.62215907,116530.0,116520.0,0.12896]
[1754775010278,1.62215907,116530.0,116520.0,0.46341657]
[1754775011181,1.2877025,116530.0,116520.0,0.46341657]
[1754775011377,1.62215907,116530.0,116520.0,0.12896]
[1754775011583,1.62215907,116530.0,116520.0,0.46341657]
[1754775012586,1.2877025,116530.0,116520.0,0.46341657]
[1754775012776,1.62215907,116530.0,116520.0,0.46341657]
[1754775015181,0.81359907,116530.0,116520.0,0.46341657]
[1754775015387,0.81359907,116530.0,116520.0,0.12896]
[1754775015586,0.4791425,116530.0,116520.0,0.46341657]
[1754775015787,0.81359907,116530.0,116520.0,0.46341657]
[1754775017189,1.2872225,116530.0,116520.0,0.2147594]
[1754775017384,1.62167907,116530.0,116520.0,0.54921597]
[1754775017582,1.62167907,116530.0,116520.0,0.88367254]
[1754775017783,1.2872225,116530.0,116520.0,0.88367254]
[1754775018680,1.2872225,116530.0,116520.0,0.2147594]
[1754775018879,1.2872225,116530.0,116520.0,0.54921597]
[1754775019087,0.4791425,116530.0,116520.0,0.54921597]
[1754775019988,0.81359907,116530.0,116520.0,0.54921597]
[1754775020392,0.4791425,116530.0,116520.0,0.46341657]
[1754775020688,0.81359907,116530.0,116520.0,0.46341657]
[1754775021484,0.4791425,116530.0,116520.0,0.12896]
[1754775021686,0.81359907,116530.0,116520.0,0.46341657]
[1754775025585,0.81359907,116530.0,116520.0,0.07846]
[1754775025780,0.81359907,116530.0,116520.0,0.41291657]
[1754775025984,0.81359907,116530.0,116520.0,0.07846]
[1754775026283,0.81359907,116530.0,116520.0,0.36280657]
[1754775026485,0.81359907,116530.0,116520.0,0.02835]
[1754775029984,0.4791425,116530.0,116520.0,0.02814]
[1754775030189,0.81359907,116530.0,116520.0,0.02814]
[1754775037800,0.81359907,116530.0,116520.0,0.0042]
[1754775038003,0.81359907,116530.0,116520.0,0.02812]
[1754775040606,0.4791425,116530.0,116520.0,0.02812]
[1754775040905,0.81359907,116530.0,116520.0,0.02812]
[1754775043608,0.81359907,116530.0,116520.0,0.0042]
[1754775043808,0.81359907,116530.0,116520.0,0.02812]
[1754775048712,0.4791425,116530.0,116520.0,0.02812]
[1754775048914,0.81359907,116530.0,116520.0,0.02812]
[1754775049408,0.4791425,116530.0,116520.0,0.02812]
[1754775049609,0.81359907,116530.0,116520.0,0.02812]
[1754775051006,0.4791425,116530.0,116520.0,0.02812]
[1754775051200,0.81359907,116530.0,116520.0,0.02812]
[1754775052208,0.4791425,116530.0,116520.0,0.02812]
[1754775052412,0.81359907,116530.0,116520.0,0.02812]
[1754775055010,0.81359907,116530.0,116520.0,0.0042]
[1754775055217,1.14805564,116530.0,116520.0,0.0042]
[1754775055717,0.81359907,116530.0,116520.0,0.0042]
[1754775056012,0.81359907,116530.0,116520.0,0.02812]
[1754775057314,0.81359907,116530.0,116520.0,0.04417]
[1754775057517,0.81359907,116530.0,116520.0,0.09047]
[1754775057818,0.81359907,116530.0,116520.0,0.05602]
[1754775058022,0.81359907,116530.0,116520.0,0.04417]
[1754775058217,0.81359907,116530.0,116520.0,0.02812]
[1754775058408,0.4791425,116530.0,116520.0,0.02812]
[1754775058605,0.81359907,116530.0,116520.0,0.02812]
[1754775059719,0.4791425,116530.0,116520.0,0.02812]
[1754775060017,0.81359907,116530.0,116520.0,0.02812]
[1754775064324,0.4791425,116530.0,116520.0,0.02812]
[1754775064628,0.81359907,116530.0,116520.0,0.02812]
[1754775068326,1.61951907,116530.0,116520.0,0.46392657]
[1754775068629,1.61951907,116530.0,116520.0,0.12947]
[1754775069031,1.61951907,116530.0,116520.0,0.0778]
[1754775070931,1.2850625,116530.0,116520.0,0.0778]
[1754775071227,1.61951907,116530.0,116520.0,0.0778]
[1754775071818,0.4497925,116530.0,116520.0,0.12947]
[1754775072019,0.4769125,116530.0,116520.0,0.46392657]
[1754775072223,0.81136907,116530.0,116520.0,0.46392657]
[1754775072821,0.4769125,116530.0,116520.0,0.46392657]
[1754775073023,0.81136907,116530.0,116520.0,0.46392657]
[1754775074028,0.4769125,116530.0,116520.0,0.46392657]
[1754775074223,0.81136907,116530.0,116520.0,0.46392657]
[1754775075333,0.4769125,116530.0,116520.0,0.46392657]
[1754775075631,0.81136907,116530.0,116520.0,0.46392657]
[1754775077122,0.4769125,116530.0,116520.0,0.46392657]
[1754775077837,0.4769125,116530.0,116520.0,0.88418234]
[1754775078126,0.9165525,116530.0,116520.0,0.88418234]
[1754775078633,1.25100907,116530.0,116520.0,0.2152692]
[1754775078836,1.25100907,116530.0,116520.0,0.88418234]
[1754775079232,0.9165525,116530.0,116520.0,0.88418234]
[1754775079937,1.25100907,116530.0,116520.0,0.88418234]
[1754775080732,0.9165525,116530.0,116520.0,0.88418234]
[1754775080935,1.25100907,116530.0,116520.0,0.88418234]
[1754775082237,0.9216725,116530.0,116520.0,0.88418234]
[1754775082842,1.25612907,116530.0,116520.0,0.88418234]
[1754775083427,0.9216725,116530.0,116520.0,0.88418234]
[1754775083836,1.25612907,116530.0,116520.0,0.88418234]
[1754775084624,1.25612907,116530.0,116520.0,0.2152692]
[1754775084824,0.9216725,116530.0,116520.0,0.88418234]
[1754775085037,1.25612907,116530.0,116520.0,0.88418234]
[1754775086832,0.9216725,116530.0,116520.0,0.88418234]
[1754775087034,1.25612907,116530.0,116520.0,0.88418234]
[1754775089939,0.9216725,116530.0,116520.0,1.24498234]
[1754775090240,1.25612907,116530.0,116520.0,1.24498234]
[1754775090443,1.25612907,116530.0,116520.0,0.88418234]
[1754775090749,0.9216725,116530.0,116520.0,0.88418234]
[1754775090953,1.25612907,116530.0,116520.0,0.88418234]
[1754775091341,0.9216725,116530.0,116520.0,0.88418234]
[1754775091542,1.25612907,116530.0,116520.0,0.88418234]
[1754775092843,1.25612907,116530.0,116520.0,0.2152692]
[1754775093043,1.25612907,116530.0,116520.0,0.88418234]
[1754775093555,1.25612907,116530.0,116520.0,0.2152692]
[1754775093756,1.25612907,116530.0,116520.0,0.88418234]
[1754775095153,0.9216725,116530.0,116520.0,0.88418234]
[1754775095353,1.25612907,116530.0,116520.0,0.88418234]
[1754775098050,1.25612907,116530.0,116520.0,0.2152692]
[1754775098255,1.25612907,116530.0,116520.0,0.88418234]
[1754775099951,1.25556907,116530.0,116520.0,0.2152692]
[1754775100152,1.25556907,116530.0,116520.0,0.88418234]
[1754775100547,1.61636907,116530.0,116520.0,0.79838314]
[1754775100747,1.25556907,116530.0,116520.0,0.88418244]
[1754775101046,1.25556907,116530.0,116520.0,0.79838314]
[1754775101253,1.2819125,116530.0,116520.0,0.79838314]
[1754775101454,1.25556907,116530.0,116520.0,0.79838314]
[1754775101653,1.25556907,116530.0,116520.0,0.88418244]
[1754775101654,0.9200125,116530.0,116520.0,0.88418244]
[1754775101954,0.9200125,116530.0,116520.0,0.79838314]
[1754775102154,0.9200125,116530.0,116520.0,0.88418244]
[1754775102454,0.9200125,116530.0,116520.0,0.79838314]
[1754775103158,0.9200125,116530.0,116520.0,0.88418244]
[1754775103452,0.9200125,116530.0,116520.0,0.12947]
[1754775103756,1.25446907,116530.0,116520.0,0.79838314]
[1754775104455,0.9200125,116530.0,116520.0,0.88418244]
[1754775104656,1.25446907,116530.0,116520.0,0.88418244]
[1754775105856,0.9200125,116530.0,116520.0,0.2152693]
[1754775106058,0.9200125,116530.0,116520.0,0.88418244]
[1754775106356,0.9200125,116530.0,116520.0,0.54972587]
[1754775106558,1.25446907,116530.0,116520.0,0.88418244]
[1754775106761,0.9200125,116530.0,116520.0,0.88418244]
[1754775109364,0.9200125,116530.0,116520.0,0.2152693]
[1754775109567,0.9200125,116530.0,116520.0,0.88418244]
[1754775112067,0.1150125,116530.0,116520.0,0.88418244]
[1754775115166,0.1098925,116530.0,116520.0,0.88418244]
[1754775115769,0.1150125,116530.0,116520.0,0.88418244]
[1754775116567,0.0889925,116530.0,116520.0,0.88418244]
[1754775116974,0.1098925,116530.0,116520.0,0.88418244]
[1754775117567,0.1150125,116530.0,116520.0,0.88418244]
[1754775119273,0.02922,116530.0,116520.0,1.24498244]
[1754775119673,0.02922,116530.0,116520.0,2.04930244]
[1754775123162,0.0241,116530.0,116520.0,2.04930244]
[1754775123768,0.0241,116530.0,116520.0,1.3803893]
[1754775124066,0.0241,116530.0,116520.0,2.04930244]
[1754775124870,0.0241,116530.0,116520.0,0.5760693]
[1754775125077,0.109892,116530.0,116520.0,1.24498244]
[1754775125268,0.109892,116530.0,116520.0,0.5760693]
[1754775125466,0.109892,116530.0,116520.0,1.24498244]
[1754775125667,0.12922987,116530.0,116520.0,0.5760693]
[1754775125872,0.12922987,116530.0,116520.0,1.24498244]
[1754775126073,0.13434987,116530.0,116520.0,1.24498244]
[1754775126771,0.46880644,116530.0,116520.0,1.24498244]
[1754775126971,1.27620644,116530.0,116520.0,0.5760693]
[1754775127168,0.94174987,116530.0,116520.0,1.24498244]
[1754775127474,0.13434987,116530.0,116520.0,1.24498244]
[1754775128074,0.46880644,116530.0,116520.0,1.24498244]
[1754775128769,0.46880644,116530.0,116520.0,0.5760693]
[1754775128770,0.04855787,116530.0,116520.0,0.5760693]
[1754775128978,0.37078444,116530.0,116520.0,1.24498244]
[1754775129272,0.03632787,116530.0,116520.0,1.24498244]
[1754775129473,0.37078444,116530.0,116520.0,1.24498244]
[1754775129871,0.03632787,116530.0,116520.0,1.24498244]
[1754775130173,0.37078444,116530.0,116520.0,1.24498244]
[1754775131768,0.37078444,116530.0,116520.0,0.5760693]
[1754775132174,0.37078444,116530.0,116520.0,1.24498244]
[1754775132677,0.03632787,116530.0,116520.0,1.24498244]
[1754775133368,0.03632787,116530.0,116520.0,2.05258244]
[1754775134071,0.03632787,116530.0,116520.0,1.69178244]
[1754775134276,0.02573787,116530.0,116520.0,1.0228693]
[1754775134478,0.02573787,116530.0,116520.0,1.69178244]
[1754775135383,0.02253787,116530.0,116520.0,1.69178244]
[1754775135674,0.02253787,116530.0,116520.0,2.05258244]
[1754775147390,0.20675415,116550.0,116540.0,0.2075841]
[1754775147591,1.32229072,116550.0,116540.0,0.54204067]
[1754775147983,1.32549072,116550.0,116540.0,0.54204067]
[1754775148183,0.19181415,116550.0,116540.0,0.54204067]
[1754775148385,1.33183072,116550.0,116540.0,0.54204067]
[1754775148579,1.33283072,116550.0,116540.0,0.54204067]
[1754775148994,1.32407501,116550.0,116540.0,0.54204067]
[1754775149291,0.90484154,116550.0,116540.0,0.54304067]
[1754775149790,1.24911811,116550.0,116540.0,0.54304067]
[1754775150488,0.44355811,116550.0,116540.0,0.54304067]
[1754775150687,1.24875811,116550.0,116540.0,0.54304067]
[1754775151493,1.24875811,116550.0,116540.0,0.2085841]
[1754775151692,1.24875811,116550.0,116540.0,0.54304067]
[1754775152393,1.33453491,116550.0,116540.0,0.54304067]
[1754775152688,1.00007834,116550.0,116540.0,0.54304067]
[1754775152894,1.25387811,116550.0,116540.0,0.54304067]
[1754775153083,0.91942154,116550.0,116540.0,0.54304067]
[1754775153282,1.25387811,116550.0,116540.0,0.54304067]
[1754775153486,1.33965491,116550.0,116540.0,0.54304067]
[1754775154296,1.33965491,116550.0,116540.0,0.2085841]
[1754775154593,1.33965491,116550.0,116540.0,0.54304067]
[1754775154788,0.08994154,116550.0,116540.0,0.87749724]
[1754775154995,0.89454154,116550.0,116540.0,0.2085841]
[1754775155191,0.89454154,116550.0,116540.0,0.87749724]
[1754775155394,0.89774154,116550.0,116540.0,0.54304067]
[1754775155588,0.90380154,116550.0,116540.0,0.55144981]
[1754775155988,0.90380154,116550.0,116540.0,0.54304067]
[1754775156493,1.23825811,116550.0,116540.0,0.2085841]
[1754775156695,1.23825811,116550.0,116540.0,0.90384067]
[1754775156882,1.23825811,116550.0,116540.0,0.54304067]
[1754775157296,1.23825811,116550.0,116540.0,0.90384067]
[1754775157489,0.07105177,116550.0,116540.0,1.23829724]
[1754775157701,1.24906717,116560.0,116550.0,0.4644979]
[1754775157892,1.24906717,116560.0,116550.0,0.79895447]
[1754775158091,0.9146106,116560.0,116550.0,0.79895447]
[1754775158290,1.24906717,116560.0,116550.0,0.79895447]
[1754775158495,1.16329657,116560.0,116550.0,0.79895447]
[1754775159102,0.35953657,116560.0,116550.0,0.80095447]
[1754775159292,0.81674,116560.0,116550.0,0.80195447]
[1754775159494,0.81674,116560.0,116550.0,1.16275447]
[1754775159687,0.002,116560.0,116550.0,1.16275447]
[1754775161194,0.07132022,116560.0,116550.0,0.8282979]
[1754775161387,0.002,116560.0,116550.0,1.16275447]
[1754775162001,0.82440673,116570.0,116560.0,0.1333292]
[1754775162294,1.1588633,116570.0,116560.0,0.90243577]
[1754775162494,0.82440673,116570.0,116560.0,0.90243577]
[1754775162702,0.82440673,116570.0,116560.0,0.5679792]
[1754775162896,0.82760673,116570.0,116560.0,0.90243577]
[1754775163293,0.82760673,116570.0,116560.0,0.5679792]
[1754775163495,1.1620633,116570.0,116560.0,0.90343577]
[1754775163800,1.1630633,116570.0,116560.0,0.90343577]
[1754775164001,0.82540673,116570.0,116560.0,0.5689792]
[1754775164199,0.82540673,116570.0,116560.0,1.23789234]
[1754775164600,0.82740673,116570.0,116560.0,1.23889234]
[1754775166000,0.02212673,116570.0,116560.0,2.04473234]
[1754775166202,0.09107163,116570.0,116560.0,2.04493234]
[1754775166391,0.02232673,116570.0,116560.0,2.04493234]
[1754775166793,1.14029657,116580.0,116560.0,2.14241594]
[1754775167000,1.14029657,116580.0,116570.0,0.54162837]
[1754775167194,0.80904,116580.0,116570.0,0.54162837]
[1754775167598,1.1908,116590.0,116580.0,0.2071644]
[1754775167795,1.2618801,116600.0,116580.0,1.05948614]
[1754775168001,1.23553667,116600.0,116590.0,0.54161367]
[1754775168198,1.56999324,116600.0,116590.0,0.2071571]
[1754775169102,1.63688225,116600.0,116590.0,0.2071571]
[1754775169497,1.63888225,116600.0,116590.0,0.2081571]
[1754775169697,1.65370225,116600.0,116590.0,0.54261367]
[1754775170105,1.31924568,116600.0,116590.0,0.54261367]
[1754775170404,1.65570225,116600.0,116590.0,0.54261367]
[1754775170805,1.56996215,116600.0,116590.0,0.54261367]
[1754775171105,0.90104901,116600.0,116590.0,0.54261367]
[1754775171608,1.23550558,116600.0,116590.0,0.54361367]
[1754775171904,0.90104901,116600.0,116590.0,0.2091571]
[1754775172107,1.23550558,116600.0,116590.0,0.90441367]
[1754775172295,1.21142558,116600.0,116590.0,0.54361367]
[1754775172498,1.21142558,116600.0,116590.0,0.90441367]
[1754775172803,0.88016901,116600.0,116590.0,0.90441367]
[1754775172997,0.88016901,116600.0,116590.0,0.5699571]
[1754775173403,0.88629901,116600.0,116590.0,0.90441367]
[1754775174206,0.88629901,116600.0,116590.0,0.5699571]
[1754775174503,0.88629901,116600.0,116590.0,0.90441367]
[1754775174707,0.08021901,116600.0,116590.0,0.90441367]
[1754775175004,0.76406215,116600.0,116590.0,0.002]
[1754775175209,0.18088871,116600.0,116590.0,0.1115171]
[1754775175405,0.18088871,116600.0,116590.0,0.1268971]
[1754775175709,0.84980185,116600.0,116590.0,0.2091571]
[1754775178309,0.51534528,116600.0,116590.0,0.54361367]
[1754775178814,0.42960558,116600.0,116590.0,0.54361367]
[1754775179007,0.42960558,116600.0,116590.0,0.2091571]
[1754775179211,0.09514901,116600.0,116590.0,0.2091571]
[1754775179511,0.42960558,116600.0,116590.0,0.54361367]
[1754775179712,0.42960558,116600.0,116590.0,0.2091571]
[1754775179913,0.36271657,116600.0,116590.0,0.54361367]
[1754775180414,0.02826,116600.0,116590.0,0.54361367]
[1754775180608,0.36271657,116600.0,116590.0,0.54361367]
[1754775180809,0.34778657,116600.0,116590.0,0.54361367]
[1754775181108,0.02826,116600.0,116590.0,0.54361367]
[1754775181307,0.36271657,116600.0,116590.0,0.54361367]
[1754775181709,0.02826,116600.0,116590.0,0.54361367]
[1754775181914,0.36271657,116600.0,116590.0,0.2091571]
[1754775182115,0.36271657,116600.0,116590.0,0.54361367]
[1754775182915,0.36271657,116600.0,116590.0,0.2091571]
[1754775183115,0.36271657,116600.0,116590.0,0.54361367]
[1754775183512,0.004,116600.0,116590.0,0.54361367]
[1754775183914,0.0072,116600.0,116590.0,0.54361367]
[1754775184418,0.01333,116600.0,116590.0,0.54361367]
[1754775185622,0.34778657,116600.0,116590.0,0.2091571]
[1754775185823,0.34798657,116600.0,116590.0,0.90461367]
[1754775186009,0.34798657,116600.0,116590.0,0.54381367]
[1754775186414,0.02334,116600.0,116590.0,0.54381367]
[1754775186820,0.35779657,116600.0,116590.0,0.54381367]
[1754775187027,0.35779657,116600.0,116590.0,0.2093571]
[1754775187321,0.77698274,116600.0,116590.0,0.1117171]
[1754775187515,0.78284274,116600.0,116590.0,0.1117171]
[1754775187715,0.78284274,116600.0,116590.0,0.1603171]
[1754775188017,0.78284274,116600.0,116590.0,0.2100371]
[1754775188419,0.36264657,116600.0,116590.0,0.54449367]
[1754775188722,0.02819,116600.0,116590.0,0.2100371]
[1754775189522,0.36213304,116600.0,116590.0,0.2100371]
[1754775190615,0.02819,116600.0,116590.0,0.2100371]
[1754775195124,0.1139291,116600.0,116590.0,0.2100371]
[1754775195330,0.44787214,116600.0,116590.0,0.2100371]
[1754775197224,0.0857464,116590.0,116580.0,0.0001]
[1754775197421,0.29238461,116580.0,116570.0,0.0001]
[1754775197621,0.29238461,116580.0,116560.0,0.02297]
[1754775197622,0.0856611,116570.0,116560.0,0.02297]
[1754775197820,1.59980414,116570.0,116560.0,0.02297]
[1754775199125,1.27555122,116570.0,116560.0,0.02597]
[1754775199324,1.60949426,116570.0,116560.0,0.02597]
[1754775199919,1.60949426,116570.0,116560.0,0.004]
[1754775200123,1.60849426,116570.0,116560.0,0.001]
[1754775200322,1.60949426,116570.0,116560.0,0.002]
[1754775200722,1.61149426,116570.0,116560.0,0.002]
[1754775203727,1.61149426,116570.0,116560.0,0.02497]
[1754775206028,1.27755122,116570.0,116560.0,0.02497]
[1754775206331,1.61149426,116570.0,116560.0,0.02497]
[1754775206934,1.27755122,116570.0,116560.0,0.02497]
[1754775207127,1.61149426,116570.0,116560.0,0.02497]
[1754775209637,1.27755122,116570.0,116560.0,0.02497]
[1754775209838,1.61149426,116570.0,116560.0,0.02497]
[1754775227039,1.63404938,116570.0,116560.0,0.02497]
[1754775227345,1.63424938,116570.0,116560.0,0.05914]
[1754775230644,1.96867396,116570.0,116560.0,0.05914]
[1754775232847,1.94611884,116570.0,116560.0,0.05914]
[1754775233145,1.58531884,116570.0,116560.0,0.05914]
[1754775233444,1.94611884,116570.0,116560.0,0.05914]
[1754775234145,1.61193503,116570.0,116560.0,0.05099]
[1754775234346,1.61193503,116570.0,116560.0,0.12412]
[1754775234847,1.25113503,116570.0,116560.0,0.12412]
[1754775237856,0.91695122,116570.0,116560.0,0.12412]
[1754775238155,1.24020491,116570.0,116560.0,0.12412]
[1754775238356,1.24020491,116570.0,116560.0,0.45830381]
[1754775238556,1.24020491,116570.0,116560.0,0.12412]
[1754775239056,1.24020491,116570.0,116560.0,0.54407211]
[1754775239761,0.9060211,116570.0,116560.0,0.54407211]
[1754775239952,1.24020491,116570.0,116560.0,0.54407211]
[1754775240562,0.9060211,116570.0,116560.0,0.54407211]
[1754775240856,0.0032,116570.0,116560.0,0.54407211]
[1754775241061,0.27621849,116580.0,116570.0,0.2095209]
[1754775241253,0.6104023,116580.0,116570.0,0.90450471]
[1754775242356,0.19345799,116580.0,116570.0,0.90550471]
[1754775242556,0.4418833,116580.0,116570.0,0.90550471]
[1754775242756,0.10769949,116580.0,116570.0,0.5713209]
[1754775243260,0.10769949,116580.0,116570.0,0.57997613]
[1754775243559,0.10769949,116580.0,116570.0,0.5713209]
[1754775248171,0.10969949,116580.0,116570.0,0.9053423]
[1754775248468,0.10669949,116580.0,116570.0,0.9043423]
[1754775248772,0.10769949,116580.0,116570.0,0.9063423]
[1754775248971,0.10569949,116580.0,116570.0,0.9073423]
[1754775249472,0.01994569,116580.0,116570.0,0.9073423]
[1754775253070,0.3429729,116600.0,116590.0,0.2055464]
[1754775253273,0.3429729,116600.0,116590.0,0.5663464]
[1754775254570,0.6769943,116600.0,116590.0,0.5663464]
[1754775254764,0.6779943,116600.0,116590.0,0.5673464]
[1754775254964,0.6789943,116600.0,116590.0,0.5673464]
[1754775256776,0.3449729,116600.0,116590.0,0.5673464]
[1754775259078,0.2592277,116600.0,116590.0,0.5673464]
[1754775262382,0.2592277,116600.0,116590.0,0.5693464]
[1754775262578,0.2594277,116600.0,116590.0,0.5695464]
[1754775262881,0.59234875,116600.0,116590.0,0.90546745]
[1754775269385,0.2584277,116600.0,116590.0,0.90546745]
[1754775269584,0.59234875,116600.0,116590.0,0.90546745]
[1754775270583,0.2584277,116600.0,116590.0,0.90546745]
[1754775270787,0.9262698,116600.0,116590.0,0.90546745]
[1754775271186,0.59234875,116600.0,116590.0,0.5715464]
[1754775271578,0.59234875,116600.0,116590.0,0.90546745]
[1754775271778,0.2584277,116600.0,116590.0,0.90546745]
[1754775272183,0.59234875,116600.0,116590.0,0.90546745]
[1754775274084,0.0012,116600.0,116590.0,0.92263652]
[1754775275387,0.0012,116600.0,116590.0,1.25655757]
[1754775275590,0.23966235,116620.0,116610.0,0.0857316]
[1754775275790,0.0857251,116620.0,116610.0,0.89767265]
[1754775275983,0.59108315,116630.0,116610.0,1.06913095]
[1754775276182,0.59108315,116630.0,116620.0,0.53686535]
[1754775276585,0.1714395,116630.0,116620.0,0.89766535]
[1754775276789,0.50536055,116630.0,116620.0,0.89766535]
[1754775277289,0.1714395,116630.0,116620.0,0.89766535]
[1754775277991,0.1714395,116630.0,116620.0,0.89966535]
[1754775278589,0.50536055,116630.0,116620.0,0.89966535]
[1754775278792,0.1714395,116630.0,116620.0,1.71235045]
[1754775279294,0.1724395,116630.0,116620.0,1.3806243]
[1754775279992,0.0867169,116630.0,116620.0,1.71435045]
[1754775281686,0.0867169,116630.0,116620.0,1.73143874]
[1754775283990,0.001,116630.0,116620.0,1.73143874]
[1754775290796,0.001,116630.0,116620.0,1.39771259]
[1754775290998,0.001,116630.0,116620.0,1.73143874]
[1754775293896,0.0857106,116640.0,116630.0,0.1782264]
[1754775294196,0.0857106,116640.0,116630.0,0.89746255]
[1754775294391,0.0859106,116640.0,116630.0,0.89766255]
[1754775295187,0.0869106,116640.0,116630.0,0.89866255]
[1754775295799,0.0879106,116640.0,116630.0,0.89866255]
[1754775297194,0.0022,116640.0,116630.0,0.89866255]
[1754775300206,0.0879091,116640.0,116630.0,0.89866255]
[1754775300708,0.0022,116640.0,116630.0,0.89855585]
[1754775301109,0.0879091,116640.0,116630.0,0.89855585]
[1754775302602,0.0879091,116640.0,116630.0,0.5649364]
[1754775302805,0.0879091,116640.0,116630.0,0.89855585]
[1754775303006,0.0879091,116640.0,116630.0,0.96706653]
[1754775306103,0.0879091,116640.0,116630.0,0.63344708]
[1754775306405,0.0879091,116640.0,116630.0,0.96706653]
[1754775307208,0.0879091,116640.0,116630.0,0.63344708]
[1754775307507,0.0879091,116640.0,116630.0,0.96706653]
[1754775310709,0.755148,116640.0,116630.0,0.2041364]
[1754775311305,0.42152855,116640.0,116630.0,0.53775585]
[1754775312010,0.42152855,116640.0,116630.0,0.2041364]
[1754775312508,0.42152855,116640.0,116630.0,0.53775585]
[1754775313706,0.755148,116640.0,116630.0,0.53775585]
[1754775314619,0.0879091,116640.0,116630.0,0.53775585]
[1754775314916,0.42152855,116640.0,116630.0,0.53775585]
[1754775315107,0.755148,116640.0,116630.0,0.53775585]
[1754775315413,0.42152855,116640.0,116630.0,0.53775585]
[1754775316214,0.42152855,116640.0,116630.0,0.2041364]
[1754775316414,0.42152855,116640.0,116630.0,0.53775585]
[1754775319218,0.42152855,116640.0,116630.0,0.2041364]
[1754775319412,0.37152855,116640.0,116630.0,0.53755585]
[1754775323421,0.37152855,116640.0,116630.0,0.64530819]
[1754775324020,0.37152855,116640.0,116630.0,0.55959179]
[1754775324920,0.37152855,116640.0,116630.0,0.64530819]
[1754775327222,0.37152855,116640.0,116630.0,0.53755585]
[1754775327613,0.37152855,116640.0,116630.0,0.64530819]
[1754775329925,0.37152855,116640.0,116630.0,0.22597234]
[1754775330124,0.37152855,116640.0,116630.0,0.53755585]
[1754775331727,0.37152855,116640.0,116630.0,0.2039364]
[1754775331924,0.37152855,116640.0,116630.0,0.53755585]
[1754775336930,0.37152855,116640.0,116630.0,0.64530819]
[1754775338034,0.37152855,116640.0,116630.0,1.45234819]
[1754775338230,0.37172855,116640.0,116630.0,1.45254819]
[1754775341533,0.0381091,116640.0,116630.0,1.45254819]
[1754775342033,0.0381091,116640.0,116630.0,1.81334819]
[1754775342628,0.37172855,116640.0,116630.0,1.81334819]
[1754775343625,0.37172855,116640.0,116630.0,1.45254819]
[1754775344234,0.37172855,116640.0,116630.0,1.81334819]
[1754775345131,0.37172855,116640.0,116630.0,1.45254819]
[1754775345331,0.37172855,116640.0,116630.0,1.81334819]
[1754775346431,0.0381091,116640.0,116630.0,1.81334819]
[1754775346631,0.37172855,116640.0,116630.0,1.81334819]
[1754775348231,0.37172855,116640.0,116630.0,1.70559585]
[1754775350932,0.0381091,116640.0,116630.0,1.70559585]
[1754775352535,0.37172855,116640.0,116630.0,1.70559585]
[1754775353530,0.0381091,116640.0,116630.0,1.70559585]
[1754775353832,0.37172855,116640.0,116630.0,1.3719764]
[1754775354132,0.37172855,116640.0,116630.0,1.81367913]
[1754775355134,0.37172855,116640.0,116630.0,1.45287913]
[1754775357336,0.37172855,116640.0,116630.0,1.11925968]
[1754775357835,0.37172855,116640.0,116630.0,1.45287913]
[1754775359036,0.37172855,116640.0,116630.0,1.03354328]
[1754775359437,0.37172855,116640.0,116630.0,1.34479585]
[1754775361441,0.37172855,116640.0,116630.0,1.45288135]
[1754775365843,0.0381091,116640.0,116630.0,1.45288135]
[1754775366044,0.37172855,116640.0,116630.0,1.45288135]
[1754775367343,0.37172855,116640.0,116630.0,1.1192619]
[1754775367641,0.37172855,116640.0,116630.0,1.45288135]
[1754775368145,0.0381091,116640.0,116630.0,1.45288135]
[1754775368332,0.37172855,116640.0,116630.0,1.1192619]
[1754775368536,0.37172855,116640.0,116630.0,1.45288135]
[1754775372939,0.0381091,116640.0,116630.0,1.45288135]
[1754775373145,0.37172855,116640.0,116630.0,1.45288135]
[1754775373344,0.37172855,116640.0,116630.0,1.34479585]
[1754775373940,0.0859091,116640.0,116630.0,1.34479585]
[1754775374241,0.0859091,116640.0,116630.0,2.0392153]
[1754775374547,0.0859091,116640.0,116630.0,1.70559585]
[1754775377547,0.0859091,116640.0,116630.0,1.70659585]
[1754775379750,0.41952855,116640.0,116630.0,1.70659585]
[1754775379950,0.0859091,116640.0,116630.0,1.70659585]
[1754775380146,0.41952855,116640.0,116630.0,1.70659585]
[1754775381053,0.41952855,116640.0,116630.0,1.34579585]
[1754775381752,0.41952855,116640.0,116630.0,1.0121764]
[1754775381953,0.41952855,116640.0,116630.0,1.34579585]
[1754775382555,0.41952855,116640.0,116630.0,1.70659585]
[1754775383260,0.41952855,116640.0,116630.0,1.34579585]
[1754775384257,0.0859091,116640.0,116630.0,1.34579585]
[1754775384464,0.0859091,116640.0,116630.0,1.3729764]
[1754775384665,0.0859091,116640.0,116630.0,1.70659585]
[1754775386265,0.0859091,116640.0,116630.0,1.81463465]
[1754775388662,0.41952855,116640.0,116630.0,1.81463465]
[1754775389162,0.0859091,116640.0,116630.0,1.81463465]
[1754775389367,0.41952855,116640.0,116630.0,1.81463465]
[1754775392168,0.41952855,116640.0,116630.0,1.45383465]
[1754775392369,0.41952855,116640.0,116630.0,1.81463465]
[1754775395972,0.41952855,116640.0,116630.0,1.70659585]
[1754775397270,0.41952855,116640.0,116630.0,1.81464507]
[1754775397572,0.41952855,116640.0,116630.0,1.70659585]
[1754775399375,0.0859091,116640.0,116630.0,1.70659585]
[1754775399674,0.41952855,116640.0,116630.0,1.70659585]
[1754775401879,0.41952855,116640.0,116630.0,1.72403165]
[1754775402175,0.41952855,116640.0,116630.0,1.36323165]
[1754775402377,0.41952855,116640.0,116630.0,1.72403165]
[1754775402983,0.41952855,116640.0,116630.0,1.8321047]
[1754775403773,0.41952855,116640.0,116630.0,1.4713047]